[Event "*** SCC Grand Prix: Titled Tuesday Blitz"]
[Site "Chess.com"]
[Date "2020.06.23"]
[Round "9"]
[White "Walter_White_Poland"]
[Black "argentum049"]
[Result "0-1"]
[WhiteElo "2218"]
[BlackElo "2422"]
[TimeControl "180+1"]
[EndTime "11:46:10 PDT"]
[Termination "argentum049 won by resignation"]

1. e4 {[%clk 0:03:00.9]} 1... e5 {[%clk 0:02:59.2]} 2. Nf3 {[%clk 0:03:00.9]}
2... Nc6 {[%clk 0:02:59.7]} 3. Bb5 {[%clk 0:03:00.8]} 3... Nf6 {[%clk
0:02:59.6]} 4. O-O {[%clk 0:02:59.7]} 4... Nxe4 {[%clk 0:02:59.5]} 5. d4 {[%clk
0:02:58.6]} 5... Nd6 {[%clk 0:02:58.2]} 6. Bxc6 {[%clk 0:02:58.9]} 6... dxc6
{[%clk 0:02:58.9]} 7. dxe5 {[%clk 0:02:59.2]} 7... Nf5 {[%clk 0:02:59.4]} 8.
Qxd8+ {[%clk 0:02:59.7]} 8... Kxd8 {[%clk 0:02:59.1]} 9. Rd1+ {[%clk 0:03:00.3]}
9... Ke8 {[%clk 0:02:59]} 10. Nc3 {[%clk 0:03:00.4]} 10... Be7 {[%clk
0:02:50.9]} 11. Bg5 {[%clk 0:02:59.1]} 11... h5 {[%clk 0:02:48]} 12. h4 {[%clk
0:02:49.4]} 12... b6 {[%clk 0:02:46.9]} 13. Rd2 {[%clk 0:02:38.8]} 13... Bb7
{[%clk 0:02:46.3]} 14. Rad1 {[%clk 0:02:30.6]} 14... c5 {[%clk 0:02:33.2]} 15.
Rd7 {[%clk 0:02:17.9]} 15... f6 {[%clk 0:02:32.2]} 16. Bf4 {[%clk 0:01:05.2]}
16... fxe5 {[%clk 0:02:23.9]} 17. Nxe5 {[%clk 0:00:42.2]} 17... Bd6 {[%clk
0:02:20.8]} 18. Nb5 {[%clk 0:00:31.9]} 18... Ba6 {[%clk 0:02:16]} 19. Nxc7+
{[%clk 0:00:25.4]} 19... Bxc7 {[%clk 0:02:14.8]} 20. Rxc7 {[%clk 0:00:25]} 20...
Nd4 {[%clk 0:02:02.8]} 21. Rxd4 {[%clk 0:00:17.1]} 21... cxd4 {[%clk 0:02:01.2]}
22. Rxg7 {[%clk 0:00:15.2]} 22... Rc8 {[%clk 0:01:56.5]} 23. Bg5 {[%clk
0:00:14.7]} 23... Rxc2 {[%clk 0:01:38.9]} 24. Re7+ {[%clk 0:00:14.6]} 24... Kf8
{[%clk 0:01:37.9]} 25. Ng6+ {[%clk 0:00:14.8]} 25... Kg8 {[%clk 0:01:37.6]} 26.
Nxh8 {[%clk 0:00:14.6]} 26... Kxh8 {[%clk 0:01:37.3]} 27. Rxa7 {[%clk
0:00:14.7]} 27... Bc4 {[%clk 0:01:33.6]} 28. Bf6+ {[%clk 0:00:14.8]} 28... Kg8
{[%clk 0:01:31.2]} 29. Bxd4 {[%clk 0:00:14.8]} 29... Bd5 {[%clk 0:01:28]} 30.
Bc3 {[%clk 0:00:13.6]} 30... Rc1+ {[%clk 0:01:24.1]} 31. Kh2 {[%clk 0:00:12.8]}
31... Rc2 {[%clk 0:01:24.1]} 32. Kg3 {[%clk 0:00:10.6]} 32... Rc1 {[%clk
0:01:24.6]} 33. a3 {[%clk 0:00:09.2]} 33... Rg1 {[%clk 0:01:23.9]} 34. Rg7+
{[%clk 0:00:09]} 34... Kf8 {[%clk 0:01:21.2]} 35. Rd7 {[%clk 0:00:08.3]} 35...
Bc6 {[%clk 0:01:18.3]} 36. Rc7 {[%clk 0:00:07.3]} 36... Rxg2+ {[%clk 0:01:11.8]}
37. Kf4 {[%clk 0:00:07.6]} 37... Bd5 {[%clk 0:01:11.3]} 38. Rd7 {[%clk
0:00:06.2]} 38... Rg4+ {[%clk 0:01:11.1]} 39. Kf5 {[%clk 0:00:05.7]} 39... Be4+
{[%clk 0:01:09.6]} 40. Ke5 {[%clk 0:00:05.2]} 40... Rxh4 {[%clk 0:01:08]} 41. f4
{[%clk 0:00:05.4]} 41... Bc6 {[%clk 0:01:06.8]} 42. f5 {[%clk 0:00:05.2]} 42...
Bxd7 {[%clk 0:01:06.5]} 43. Bb4+ {[%clk 0:00:04.2]} 43... Kf7 {[%clk 0:01:06.1]}
44. Kd6 {[%clk 0:00:04.4]} 44... Rd4+ {[%clk 0:01:06]} 45. Kc7 {[%clk
0:00:03.8]} 45... Bxf5 {[%clk 0:01:05.2]} 46. Kxb6 {[%clk 0:00:03.9]} 46... h4
{[%clk 0:01:04.9]} 47. Bc3 {[%clk 0:00:04.1]} 47... Rd3 {[%clk 0:01:04.4]} 48.
a4 {[%clk 0:00:04.1]} 48... h3 {[%clk 0:01:04.5]} 49. Be5 {[%clk 0:00:04.4]}
49... Re3 {[%clk 0:01:04.2]} 50. Bc7 {[%clk 0:00:03.9]} 50... Re2 {[%clk
0:01:03.9]} 51. b4 {[%clk 0:00:03.4]} 51... h2 {[%clk 0:01:03.8]} 52. Bxh2
{[%clk 0:00:03.5]} 52... Rxh2 {[%clk 0:01:04.3]} 53. a5 {[%clk 0:00:03.9]} 53...
Bd3 {[%clk 0:01:03.3]} 54. a6 {[%clk 0:00:03.6]} 54... Rh6+ {[%clk 0:01:03.7]}
0-1

[Event "*** SCC Grand Prix: Titled Tuesday Blitz"]
[Site "Chess.com"]
[Date "2020.06.23"]
[Round "9"]
[White "kuba2006"]
[Black "viktorskliarov"]
[Result "0-1"]
[WhiteElo "2369"]
[BlackElo "2552"]
[TimeControl "180+1"]
[EndTime "11:46:11 PDT"]
[Termination "viktorskliarov won on time"]

1. e4 {[%clk 0:03:00.9]} 1... c5 {[%clk 0:02:57]} 2. Nf3 {[%clk 0:03:00.2]} 2...
Nc6 {[%clk 0:02:57.1]} 3. d4 {[%clk 0:03:00.1]} 3... cxd4 {[%clk 0:02:58]} 4.
Nxd4 {[%clk 0:03:01]} 4... Nf6 {[%clk 0:02:57.8]} 5. Nc3 {[%clk 0:03:00.6]} 5...
e5 {[%clk 0:02:57.5]} 6. Ndb5 {[%clk 0:03:00.5]} 6... d6 {[%clk 0:02:56.7]} 7.
Bg5 {[%clk 0:03:00.6]} 7... a6 {[%clk 0:02:56.5]} 8. Bxf6 {[%clk 0:02:59.1]}
8... gxf6 {[%clk 0:02:56]} 9. Na3 {[%clk 0:02:56.7]} 9... b5 {[%clk 0:02:56.2]}
10. Nd5 {[%clk 0:02:55.5]} 10... f5 {[%clk 0:02:55.8]} 11. Bd3 {[%clk
0:02:46.1]} 11... Be6 {[%clk 0:02:54.4]} 12. O-O {[%clk 0:02:45.5]} 12... Bg7
{[%clk 0:02:54.1]} 13. Qf3 {[%clk 0:02:39.2]} 13... Nd4 {[%clk 0:02:10.2]} 14.
Qh5 {[%clk 0:02:30.5]} 14... Bxd5 {[%clk 0:01:45]} 15. exd5 {[%clk 0:02:28.5]}
15... e4 {[%clk 0:01:45.6]} 16. c3 {[%clk 0:02:00.7]} 16... exd3 {[%clk
0:01:41.4]} 17. cxd4 {[%clk 0:02:00]} 17... Bxd4 {[%clk 0:01:27.5]} 18. Rad1
{[%clk 0:01:16.9]} 18... Bxb2 {[%clk 0:01:09.6]} 19. Rxd3 {[%clk 0:01:15.2]}
19... Qf6 {[%clk 0:01:09.8]} 20. Nc2 {[%clk 0:00:48.9]} 20... f4 {[%clk
0:01:06.2]} 21. Re1+ {[%clk 0:00:42.9]} 21... Be5 {[%clk 0:01:04.2]} 22. Nd4
{[%clk 0:00:36.2]} 22... Kf8 {[%clk 0:01:02.9]} 23. Nc6 {[%clk 0:00:19.9]} 23...
Re8 {[%clk 0:01:00.3]} 24. Rd2 {[%clk 0:00:14.4]} 24... f3 {[%clk 0:00:50.3]}
25. Re3 {[%clk 0:00:04.5]} 25... fxg2 {[%clk 0:00:47.4]} 26. Rf3 {[%clk
0:00:04.8]} 26... Qg6 {[%clk 0:00:47.2]} 27. Qxg6 {[%clk 0:00:04.6]} 27... hxg6
{[%clk 0:00:48.1]} 28. h3 {[%clk 0:00:05]} 28... f5 {[%clk 0:00:32.4]} 29. Kxg2
{[%clk 0:00:05.2]} 29... Kf7 {[%clk 0:00:33]} 30. Rc2 {[%clk 0:00:04.6]} 30...
Kf6 {[%clk 0:00:32.9]} 31. Re3 {[%clk 0:00:04.2]} 31... Bf4 {[%clk 0:00:30.3]}
32. Rd3 {[%clk 0:00:03.1]} 32... Re4 {[%clk 0:00:27.7]} 33. Nd4 {[%clk
0:00:03.3]} 33... Be5 {[%clk 0:00:24.1]} 34. Nf3 {[%clk 0:00:03.5]} 34... Rc4
{[%clk 0:00:23.3]} 35. Rcd2 {[%clk 0:00:02.3]} 35... Re8 {[%clk 0:00:22.7]} 36.
Re3 {[%clk 0:00:02.2]} 36... a5 {[%clk 0:00:22.7]} 37. Rde2 {[%clk 0:00:02]}
37... b4 {[%clk 0:00:22.5]} 38. Rb3 {[%clk 0:00:01.5]} 38... a4 {[%clk
0:00:22.4]} 39. Rd3 {[%clk 0:00:01.2]} 39... Rc3 {[%clk 0:00:21]} 0-1

[Event "*** SCC Grand Prix: Titled Tuesday Blitz"]
[Site "Chess.com"]
[Date "2020.06.23"]
[Round "9"]
[White "floplover"]
[Black "crossingthestreet"]
[Result "1-0"]
[WhiteElo "2238"]
[BlackElo "2355"]
[TimeControl "180+1"]
[EndTime "11:46:11 PDT"]
[Termination "floplover won by checkmate"]

1. d4 {[%clk 0:03:00.9]} 1... Nf6 {[%clk 0:02:59.5]} 2. c4 {[%clk 0:03:01.1]}
2... e6 {[%clk 0:02:59.7]} 3. Nc3 {[%clk 0:03:01.5]} 3... Bb4 {[%clk 0:03:00]}
4. Qc2 {[%clk 0:03:01.9]} 4... b6 {[%clk 0:02:59.6]} 5. e4 {[%clk 0:03:01.4]}
5... c5 {[%clk 0:02:59.1]} 6. d5 {[%clk 0:03:01.7]} 6... d6 {[%clk 0:02:56.1]}
7. Bd3 {[%clk 0:02:50.4]} 7... O-O {[%clk 0:02:51.8]} 8. Ne2 {[%clk 0:02:49.9]}
8... a6 {[%clk 0:02:48.1]} 9. O-O {[%clk 0:02:48.4]} 9... Bxc3 {[%clk
0:02:47.2]} 10. Nxc3 {[%clk 0:02:47.3]} 10... e5 {[%clk 0:02:44.9]} 11. f4
{[%clk 0:02:28.7]} 11... exf4 {[%clk 0:02:41.5]} 12. Bxf4 {[%clk 0:02:27.1]}
12... Qe7 {[%clk 0:02:39.8]} 13. e5 {[%clk 0:02:03.7]} 13... dxe5 {[%clk
0:02:22]} 14. Bg5 {[%clk 0:02:03.6]} 14... Nbd7 {[%clk 0:02:20.8]} 15. Bxh7+
{[%clk 0:01:58.2]} 15... Kh8 {[%clk 0:02:18.9]} 16. Ne4 {[%clk 0:01:47.9]} 16...
Re8 {[%clk 0:01:47]} 17. Bf5 {[%clk 0:01:45]} 17... Qf8 {[%clk 0:01:38.6]} 18.
Nxf6 {[%clk 0:01:28.5]} 18... gxf6 {[%clk 0:01:36.9]} 19. Bxd7 {[%clk
0:01:06.7]} 19... fxg5 {[%clk 0:01:28.1]} 20. Bxe8 {[%clk 0:01:05.7]} 20... Qxe8
{[%clk 0:01:28.9]} 21. Rf6 {[%clk 0:00:59.1]} 21... Kg7 {[%clk 0:01:18.6]} 22.
Raf1 {[%clk 0:00:57.2]} 22... Qe7 {[%clk 0:01:05.1]} 23. Qf2 {[%clk 0:00:43.5]}
23... Ra7 {[%clk 0:01:03.3]} 24. h4 {[%clk 0:00:36.9]} 24... g4 {[%clk
0:00:59.2]} 25. h5 {[%clk 0:00:36.3]} 25... e4 {[%clk 0:00:34.6]} 26. h6+ {[%clk
0:00:34.8]} 26... Kh7 {[%clk 0:00:29.8]} 27. Rxf7+ {[%clk 0:00:21.5]} 27... Qxf7
{[%clk 0:00:29.9]} 28. Qxf7+ {[%clk 0:00:22.4]} 28... Rxf7 {[%clk 0:00:30.4]}
29. Rxf7+ {[%clk 0:00:22.7]} 29... Kxh6 {[%clk 0:00:30.8]} 30. d6 {[%clk
0:00:20.5]} 30... e3 {[%clk 0:00:25.5]} 31. d7 {[%clk 0:00:20.1]} 31... e2
{[%clk 0:00:23.1]} 32. Kf2 {[%clk 0:00:19.8]} 32... g3+ {[%clk 0:00:17.7]} 33.
Kxe2 {[%clk 0:00:18.4]} 33... Bxd7 {[%clk 0:00:15.7]} 34. Rxd7 {[%clk
0:00:17.9]} 34... Kg5 {[%clk 0:00:16.6]} 35. Rd6 {[%clk 0:00:16.8]} 35... Kf4
{[%clk 0:00:17.5]} 36. Rxb6 {[%clk 0:00:16.8]} 36... Ke4 {[%clk 0:00:18.4]} 37.
Rxa6 {[%clk 0:00:16.9]} 37... Kd4 {[%clk 0:00:19.3]} 38. Rg6 {[%clk 0:00:17.1]}
38... Kxc4 {[%clk 0:00:19.4]} 39. Rxg3 {[%clk 0:00:18]} 39... Kb5 {[%clk
0:00:20]} 40. Rc3 {[%clk 0:00:18.1]} 40... c4 {[%clk 0:00:20.9]} 41. g4 {[%clk
0:00:18.3]} 41... Kb4 {[%clk 0:00:21.8]} 42. g5 {[%clk 0:00:18.7]} 42... Ka4
{[%clk 0:00:22.1]} 43. g6 {[%clk 0:00:19.2]} 43... Kb4 {[%clk 0:00:21.6]} 44. g7
{[%clk 0:00:19.4]} 44... Ka5 {[%clk 0:00:21.9]} 45. g8=Q {[%clk 0:00:18.5]}
45... Kb6 {[%clk 0:00:22.8]} 46. Qxc4 {[%clk 0:00:18]} 46... Kb7 {[%clk
0:00:23]} 47. Rb3+ {[%clk 0:00:18.1]} 47... Ka7 {[%clk 0:00:23.5]} 48. Qa4#
{[%clk 0:00:17.9]} 1-0

[Event "*** SCC Grand Prix: Titled Tuesday Blitz"]
[Site "Chess.com"]
[Date "2020.06.23"]
[Round "9"]
[White "Micki-taryan"]
[Black "Oleksandr_Bortnyk"]
[Result "1-0"]
[WhiteElo "3034"]
[BlackElo "2909"]
[TimeControl "180+1"]
[EndTime "11:46:12 PDT"]
[Termination "Micki-taryan won on time"]

1. d4 {[%clk 0:03:00.9]} 1... Nf6 {[%clk 0:02:58.8]} 2. Nf3 {[%clk 0:03:01.2]}
2... e6 {[%clk 0:02:57.7]} 3. c4 {[%clk 0:03:01.1]} 3... d5 {[%clk 0:02:57.8]}
4. Nc3 {[%clk 0:03:00.7]} 4... g6 {[%clk 0:02:57.3]} 5. Bf4 {[%clk 0:02:57.9]}
5... Bg7 {[%clk 0:02:57.2]} 6. e3 {[%clk 0:02:58.4]} 6... O-O {[%clk 0:02:57.3]}
7. h3 {[%clk 0:02:58.9]} 7... Nc6 {[%clk 0:02:57.7]} 8. Be2 {[%clk 0:02:55.7]}
8... Ne7 {[%clk 0:02:58]} 9. O-O {[%clk 0:02:52.9]} 9... Re8 {[%clk 0:02:55.4]}
10. Nb5 {[%clk 0:02:38.4]} 10... dxc4 {[%clk 0:02:27.3]} 11. Nxc7 {[%clk
0:02:33.7]} 11... Ned5 {[%clk 0:02:17.8]} 12. Nxe8 {[%clk 0:02:26.5]} 12... Qxe8
{[%clk 0:02:14.4]} 13. Be5 {[%clk 0:02:23.7]} 13... b5 {[%clk 0:02:14.3]} 14.
Nd2 {[%clk 0:02:17]} 14... Bb7 {[%clk 0:02:08.4]} 15. Bf3 {[%clk 0:02:14.5]}
15... Rc8 {[%clk 0:02:01.3]} 16. Rc1 {[%clk 0:02:11.1]} 16... Qe7 {[%clk
0:01:41.6]} 17. Bxf6 {[%clk 0:02:04.6]} 17... Bxf6 {[%clk 0:01:39.5]} 18. Ne4
{[%clk 0:02:04.4]} 18... Bg7 {[%clk 0:01:39.6]} 19. Nc3 {[%clk 0:01:55.4]} 19...
a6 {[%clk 0:01:25]} 20. a4 {[%clk 0:01:52.8]} 20... b4 {[%clk 0:01:22]} 21. Ne4
{[%clk 0:01:51.7]} 21... a5 {[%clk 0:01:08.2]} 22. Nc5 {[%clk 0:01:47.6]} 22...
Rxc5 {[%clk 0:01:08.4]} 23. dxc5 {[%clk 0:01:48.5]} 23... Qxc5 {[%clk
0:01:09.2]} 24. Qe2 {[%clk 0:01:43.3]} 24... Ba6 {[%clk 0:00:49.5]} 25. Qc2
{[%clk 0:01:35.8]} 25... Nb6 {[%clk 0:00:43.4]} 26. Rfd1 {[%clk 0:01:33]} 26...
Bf6 {[%clk 0:00:43]} 27. Be2 {[%clk 0:01:27.7]} 27... Qe5 {[%clk 0:00:41.1]} 28.
Rd4 {[%clk 0:01:24]} 28... Qc7 {[%clk 0:00:36.9]} 29. Rxc4 {[%clk 0:01:21.1]}
29... Nxc4 {[%clk 0:00:14.3]} 30. Bxc4 {[%clk 0:01:18.9]} 30... Bb7 {[%clk
0:00:11.6]} 31. Be2 {[%clk 0:01:11.3]} 31... Qe5 {[%clk 0:00:08.7]} 32. b3
{[%clk 0:01:03.6]} 32... Bd5 {[%clk 0:00:08]} 33. Qd1 {[%clk 0:00:58.6]} 33...
Qb2 {[%clk 0:00:07.1]} 34. Rc8+ {[%clk 0:00:45.7]} 34... Kg7 {[%clk 0:00:07.2]}
35. Bc4 {[%clk 0:00:46.6]} 35... Be4 {[%clk 0:00:06.4]} 36. Qd6 {[%clk
0:00:39.9]} 36... Qa1+ {[%clk 0:00:03.1]} 37. Bf1 {[%clk 0:00:36.9]} 37... Be5
{[%clk 0:00:03.2]} 38. Qf8+ {[%clk 0:00:33.4]} 38... Kf6 {[%clk 0:00:03.8]} 39.
Qh8+ {[%clk 0:00:27.7]} 39... Kg5 {[%clk 0:00:02.3]} 40. Qxe5+ {[%clk
0:00:26.9]} 40... Qxe5 {[%clk 0:00:02.1]} 41. f4+ {[%clk 0:00:27.3]} 41... Qxf4
{[%clk 0:00:01.9]} 42. exf4+ {[%clk 0:00:27.8]} 42... Kxf4 {[%clk 0:00:02.8]}
43. Rc5 {[%clk 0:00:27.9]} 43... Bd5 {[%clk 0:00:03]} 44. Rxa5 {[%clk
0:00:26.8]} 44... Bxb3 {[%clk 0:00:02.8]} 45. Rb5 {[%clk 0:00:27]} 1-0

[Event "*** SCC Grand Prix: Titled Tuesday Blitz"]
[Site "Chess.com"]
[Date "2020.06.23"]
[Round "9"]
[White "SilviusTiberius"]
[Black "BikingBrian"]
[Result "1-0"]
[WhiteElo "2400"]
[BlackElo "2259"]
[TimeControl "180+1"]
[EndTime "11:46:14 PDT"]
[Termination "SilviusTiberius won by resignation"]

1. e4 {[%clk 0:03:00.9]} 1... c5 {[%clk 0:02:59.6]} 2. Nf3 {[%clk 0:03:00.4]}
2... g6 {[%clk 0:03:00]} 3. d4 {[%clk 0:03:00.5]} 3... cxd4 {[%clk 0:03:00.9]}
4. Nxd4 {[%clk 0:03:00.9]} 4... Nc6 {[%clk 0:03:01.1]} 5. Nc3 {[%clk 0:03:01.1]}
5... Bg7 {[%clk 0:03:01.1]} 6. Be3 {[%clk 0:03:01.5]} 6... Nf6 {[%clk
0:03:01.5]} 7. Bc4 {[%clk 0:03:01.6]} 7... Qa5 {[%clk 0:03:01.6]} 8. O-O {[%clk
0:03:01.3]} 8... O-O {[%clk 0:03:01.3]} 9. Bb3 {[%clk 0:03:01.3]} 9... d6 {[%clk
0:02:58.1]} 10. h3 {[%clk 0:03:00.8]} 10... Bd7 {[%clk 0:02:58.2]} 11. Re1
{[%clk 0:03:01]} 11... Rfe8 {[%clk 0:02:57.7]} 12. Nf3 {[%clk 0:03:00.7]} 12...
Rac8 {[%clk 0:02:46.4]} 13. Bf4 {[%clk 0:02:47.9]} 13... Ne5 {[%clk 0:02:41.5]}
14. Nxe5 {[%clk 0:02:34.3]} 14... dxe5 {[%clk 0:02:42.4]} 15. Bg5 {[%clk
0:02:31.7]} 15... Red8 {[%clk 0:02:29]} 16. Qf3 {[%clk 0:02:27.9]} 16... Be6
{[%clk 0:02:17.2]} 17. Bxe6 {[%clk 0:02:26.1]} 17... fxe6 {[%clk 0:02:18.1]} 18.
Bxf6 {[%clk 0:02:10.6]} 18... Bxf6 {[%clk 0:02:10.2]} 19. Qg4 {[%clk 0:02:05.4]}
19... Kf7 {[%clk 0:02:00.5]} 20. Re2 {[%clk 0:01:46.7]} 20... Rd4 {[%clk
0:01:54.9]} 21. Rf1 {[%clk 0:01:44.4]} 21... Qb6 {[%clk 0:01:48.7]} 22. Nd5
{[%clk 0:01:31.4]} 22... exd5 {[%clk 0:01:39.4]} 23. Qxc8 {[%clk 0:01:29.9]}
23... Rxe4 {[%clk 0:01:32.3]} 24. Rxe4 {[%clk 0:01:26.7]} 24... dxe4 {[%clk
0:01:33.2]} 25. Qc4+ {[%clk 0:01:26.4]} 25... Kg7 {[%clk 0:01:22.4]} 26. Qb3
{[%clk 0:01:08.5]} 26... Qc5 {[%clk 0:01:07.3]} 27. Re1 {[%clk 0:01:04.7]} 27...
Bh4 {[%clk 0:01:02.1]} 28. g3 {[%clk 0:01:00.7]} 28... Bf6 {[%clk 0:00:52]} 29.
Rxe4 {[%clk 0:01:00.7]} 29... Qc6 {[%clk 0:00:51.1]} 30. Qd3 {[%clk 0:00:51]}
30... Qb6 {[%clk 0:00:45.4]} 31. b3 {[%clk 0:00:42.4]} 31... a5 {[%clk
0:00:38.5]} 32. Kg2 {[%clk 0:00:40.5]} 32... Qc6 {[%clk 0:00:35]} 33. Qc4 {[%clk
0:00:39.9]} 33... Qd7 {[%clk 0:00:32.6]} 34. a4 {[%clk 0:00:36.8]} 34... h5
{[%clk 0:00:29.3]} 35. Qb5 {[%clk 0:00:33.7]} 35... Qd2 {[%clk 0:00:27.9]} 36.
Rc4 {[%clk 0:00:31.4]} 36... h4 {[%clk 0:00:21.8]} 37. g4 {[%clk 0:00:28]} 37...
e4 {[%clk 0:00:14.1]} 38. Qxb7 {[%clk 0:00:24.9]} 38... e3 {[%clk 0:00:12.1]}
39. Qf3 {[%clk 0:00:13.4]} 39... e2 {[%clk 0:00:12]} 40. Re4 {[%clk 0:00:13.8]}
40... Qxc2 {[%clk 0:00:12]} 41. g5 {[%clk 0:00:13.7]} 41... Bxg5 {[%clk
0:00:08.4]} 42. Qxe2 {[%clk 0:00:14.4]} 42... Qc6 {[%clk 0:00:06.2]} 43. Qf3
{[%clk 0:00:13.9]} 43... Bf6 {[%clk 0:00:06.3]} 44. Rxe7+ {[%clk 0:00:13.9]}
44... Bxe7 {[%clk 0:00:06.6]} 45. Qxc6 {[%clk 0:00:14.5]} 1-0

[Event "*** SCC Grand Prix: Titled Tuesday Blitz"]
[Site "Chess.com"]
[Date "2020.06.23"]
[Round "9"]
[White "attack2mateU"]
[Black "TheNextLevelFan"]
[Result "1-0"]
[WhiteElo "2679"]
[BlackElo "2512"]
[TimeControl "180+1"]
[EndTime "11:46:15 PDT"]
[Termination "attack2mateU won on time"]

1. e4 {[%clk 0:03:00.9]} 1... e5 {[%clk 0:02:59.2]} 2. Nf3 {[%clk 0:03:00.6]}
2... Nc6 {[%clk 0:02:59.4]} 3. Bb5 {[%clk 0:03:00.4]} 3... a6 {[%clk 0:02:59]}
4. Ba4 {[%clk 0:03:00.9]} 4... Nf6 {[%clk 0:02:59]} 5. O-O {[%clk 0:03:01.5]}
5... Be7 {[%clk 0:02:59.2]} 6. Re1 {[%clk 0:03:01.7]} 6... b5 {[%clk 0:02:59.8]}
7. Bb3 {[%clk 0:03:02]} 7... O-O {[%clk 0:03:00.7]} 8. a4 {[%clk 0:03:00.9]}
8... b4 {[%clk 0:02:58.8]} 9. d3 {[%clk 0:02:56.8]} 9... d6 {[%clk 0:02:57.7]}
10. Nbd2 {[%clk 0:02:52.7]} 10... Na5 {[%clk 0:02:56]} 11. Ba2 {[%clk
0:02:52.4]} 11... c5 {[%clk 0:02:56.6]} 12. c3 {[%clk 0:02:49.5]} 12... Rb8
{[%clk 0:02:49.9]} 13. cxb4 {[%clk 0:02:36.8]} 13... Rxb4 {[%clk 0:02:46.1]} 14.
Nc4 {[%clk 0:02:37.2]} 14... Rb8 {[%clk 0:02:36.3]} 15. Nxa5 {[%clk 0:02:14]}
15... Qxa5 {[%clk 0:02:37.2]} 16. Bd2 {[%clk 0:02:14.2]} 16... Qc7 {[%clk
0:02:33.2]} 17. Qc2 {[%clk 0:02:09.8]} 17... Qa7 {[%clk 0:01:51.4]} 18. h3
{[%clk 0:02:08.4]} 18... Bd7 {[%clk 0:01:44.7]} 19. Nh2 {[%clk 0:02:06]} 19...
Rfc8 {[%clk 0:01:42.9]} 20. Nf1 {[%clk 0:02:05.5]} 20... Ne8 {[%clk 0:01:24.8]}
21. Bc4 {[%clk 0:01:41.7]} 21... Nc7 {[%clk 0:01:22.4]} 22. Ne3 {[%clk
0:01:33.4]} 22... Ne6 {[%clk 0:01:20.1]} 23. Nd5 {[%clk 0:01:01.1]} 23... Bf8
{[%clk 0:01:14.6]} 24. Bc3 {[%clk 0:00:50.7]} 24... Nd4 {[%clk 0:01:14.4]} 25.
Qd1 {[%clk 0:00:50.6]} 25... Be6 {[%clk 0:01:11.7]} 26. a5 {[%clk 0:00:46.9]}
26... Nc6 {[%clk 0:01:00.3]} 27. Qh5 {[%clk 0:00:43.2]} 27... Re8 {[%clk
0:00:52.3]} 28. Kh1 {[%clk 0:00:42.8]} 28... Qd7 {[%clk 0:00:45.8]} 29. Rf1
{[%clk 0:00:40.8]} 29... Qd8 {[%clk 0:00:31.3]} 30. f4 {[%clk 0:00:40.1]} 30...
exf4 {[%clk 0:00:30.7]} 31. Rxf4 {[%clk 0:00:40.5]} 31... Ne5 {[%clk 0:00:27.2]}
32. Raf1 {[%clk 0:00:19.8]} 32... f6 {[%clk 0:00:26.4]} 33. Ne3 {[%clk
0:00:05.7]} 33... Nxc4 {[%clk 0:00:24.6]} 34. dxc4 {[%clk 0:00:06.6]} 34... Qd7
{[%clk 0:00:21.1]} 35. Qf3 {[%clk 0:00:06.7]} 35... Rb3 {[%clk 0:00:19.5]} 36.
Nd5 {[%clk 0:00:07]} 36... Reb8 {[%clk 0:00:19.2]} 37. Rxf6 {[%clk 0:00:06.7]}
37... Be7 {[%clk 0:00:07.6]} 38. Rf7 {[%clk 0:00:06.7]} 38... Rxc3 {[%clk
0:00:02.4]} 39. Nxe7+ {[%clk 0:00:06.1]} 1-0

[Event "*** SCC Grand Prix: Titled Tuesday Blitz"]
[Site "Chess.com"]
[Date "2020.06.23"]
[Round "9"]
[White "Msb2"]
[Black "LuckIsMySkill"]
[Result "1-0"]
[WhiteElo "2849"]
[BlackElo "2719"]
[TimeControl "180+1"]
[EndTime "11:46:17 PDT"]
[Termination "Msb2 won on time"]

1. d4 {[%clk 0:03:00.9]} 1... d6 {[%clk 0:02:55]} 2. Nf3 {[%clk 0:03:00.2]} 2...
g6 {[%clk 0:02:54.4]} 3. c4 {[%clk 0:02:57.1]} 3... Bg7 {[%clk 0:02:54.2]} 4.
Nc3 {[%clk 0:02:57.8]} 4... e5 {[%clk 0:02:54.3]} 5. e4 {[%clk 0:02:56.4]} 5...
Bg4 {[%clk 0:02:47]} 6. dxe5 {[%clk 0:02:56.3]} 6... dxe5 {[%clk 0:02:46.2]} 7.
Qxd8+ {[%clk 0:02:55.3]} 7... Kxd8 {[%clk 0:02:46.1]} 8. Ng5 {[%clk 0:02:48.2]}
8... Nh6 {[%clk 0:02:44]} 9. h3 {[%clk 0:02:42.6]} 9... Bc8 {[%clk 0:02:10.2]}
10. c5 {[%clk 0:02:41.2]} 10... f6 {[%clk 0:02:01.1]} 11. Nf3 {[%clk 0:02:40.2]}
11... Be6 {[%clk 0:01:59.5]} 12. Be3 {[%clk 0:02:35.2]} 12... Nf7 {[%clk
0:01:57.4]} 13. O-O-O+ {[%clk 0:02:35.1]} 13... Kc8 {[%clk 0:01:54]} 14. Nd5
{[%clk 0:02:33.3]} 14... c6 {[%clk 0:01:47.1]} 15. Nc3 {[%clk 0:02:23.2]} 15...
Nd7 {[%clk 0:01:41]} 16. b4 {[%clk 0:01:41.8]} 16... Bh6 {[%clk 0:01:36.2]} 17.
Bxh6 {[%clk 0:01:40.6]} 17... Nxh6 {[%clk 0:01:35.8]} 18. Kb2 {[%clk 0:01:40.4]}
18... a5 {[%clk 0:01:32.4]} 19. a3 {[%clk 0:01:40.5]} 19... axb4 {[%clk
0:01:31.7]} 20. axb4 {[%clk 0:01:41.4]} 20... Nf7 {[%clk 0:01:29.2]} 21. Nd2
{[%clk 0:01:41.6]} 21... b5 {[%clk 0:01:23.9]} 22. Be2 {[%clk 0:01:36.2]} 22...
h5 {[%clk 0:01:15.4]} 23. Nf1 {[%clk 0:01:29.4]} 23... Kc7 {[%clk 0:01:06.3]}
24. Ne3 {[%clk 0:01:29.8]} 24... Rhd8 {[%clk 0:00:33.9]} 25. g3 {[%clk
0:00:57.6]} 25... Nb8 {[%clk 0:00:27.9]} 26. Ned5+ {[%clk 0:00:52.3]} 26... cxd5
{[%clk 0:00:13]} 27. exd5 {[%clk 0:00:53.2]} 27... Bd7 {[%clk 0:00:12.9]} 28.
d6+ {[%clk 0:00:53.7]} 28... Kb7 {[%clk 0:00:12.1]} 29. Nxb5 {[%clk 0:00:34.9]}
29... Nc6 {[%clk 0:00:10.8]} 30. Nc7 {[%clk 0:00:33.1]} 30... Nxb4 {[%clk
0:00:06.3]} 31. Nxa8 {[%clk 0:00:32.2]} 31... Rxa8 {[%clk 0:00:07.2]} 32. Ra1
{[%clk 0:00:30.2]} 32... Rb8 {[%clk 0:00:04.1]} 33. Kc3 {[%clk 0:00:28.2]} 33...
Kc6 {[%clk 0:00:03.6]} 34. Rhd1 {[%clk 0:00:18.2]} 34... Kxc5 {[%clk 0:00:02.6]}
35. Ra5+ {[%clk 0:00:18]} 35... Bb5 {[%clk 0:00:02.4]} 36. d7 {[%clk 0:00:14]}
36... Nd5+ {[%clk 0:00:01.4]} 37. Rxd5+ {[%clk 0:00:13.1]} 37... Kxd5 {[%clk
0:00:02.3]} 38. Bxb5 {[%clk 0:00:12.4]} 38... Kd6 {[%clk 0:00:02]} 39. Bc4
{[%clk 0:00:12.8]} 1-0